Department family,Entity,Date,Expense type,Expense area,Supplier,Transaction number,Amount,VAT registration number
Department for Business Energy and Industrial Strategy,Intellectual Property Office,11/01/2021,Staff Costs,People Places & Serv Directorate,Personal expenses,AH000001125,501,Not Applicable
Department for Business Energy and Industrial Strategy,Intellectual Property Office,18/01/2021,Staff Costs,People Places & Serv Directorate,Personal expenses,AH000001128,710.6,Not Applicable
Department for Business Energy and Industrial Strategy,Intellectual Property Office,15/01/2021,Pay Costs,Patent Directorate,Acorn Recruitment Ltd,967581,580.4,Not Applicable
Department for Business Energy and Industrial Strategy,Intellectual Property Office,22/01/2021,Pay Costs,Patent Directorate,Acorn Recruitment Ltd,968133,"1,485.74",Not Applicable
Department for Business Energy and Industrial Strategy,Intellectual Property Office,28/01/2021,Telecoms,IT Directorate,British  Telecom,Q004L2-20JAN21,"2,968.00",Not Applicable
Department for Business Energy and Industrial Strategy,Intellectual Property Office,28/01/2021,Telecoms,IT Directorate,British  Telecom,Q007H-20JAN21,"2,954.80",Not Applicable
Department for Business Energy and Industrial Strategy,Intellectual Property Office,28/01/2021,Telecoms,IT Directorate,British  Telecom,Q009AL-20JAN21,"1,546.00",Not Applicable
Department for Business Energy and Industrial Strategy,Intellectual Property Office,11/01/2021,Telecoms,IT Directorate,British  Telecom,Q011FF-05SEP20,"8,935.78",Not Applicable
Department for Business Energy and Industrial Strategy,Intellectual Property Office,11/01/2021,Telecoms,IT Directorate,British  Telecom,Q012JB-05DEC20,"9,005.77",Not Applicable
Department for Business Energy and Industrial Strategy,Intellectual Property Office,06/01/2021,Office Supplies,Patent Directorate,British Library,7000187812,"1,810.46",Not Applicable
Department for Business Energy and Industrial Strategy,Intellectual Property Office,14/01/2021,Staff Costs,People Places & Serv Directorate,British Standards Institution BSI,95673708,"2,670.00",Not Applicable
Department for Business Energy and Industrial Strategy,Intellectual Property Office,15/01/2021,Supporting UK Business,Copyright and Enforcement Directorate,City of London Police,4284648,"669,736.80",Not Applicable
Department for Business Energy and Industrial Strategy,Intellectual Property Office,21/01/2021,Accommodation,People Places & Serv Directorate,Corona Energy,15775338,"1,653.50",Not Applicable
Department for Business Energy and Industrial Strategy,Intellectual Property Office,21/01/2021,Accommodation,People Places & Serv Directorate,Corona Energy,15775343,"3,805.13",Not Applicable
Department for Business Energy and Industrial Strategy,Intellectual Property Office,29/01/2021,Supporting UK Business,Innovation Directorate,Dehns,448374,"2,500.00",Not Applicable
Department for Business Energy and Industrial Strategy,Intellectual Property Office,18/01/2021,Postage & Delivery Costs,People Places & Serv Directorate,DHL International (UK) Ltd,BRSR004261291,"2,021.89",Not Applicable
Department for Business Energy and Industrial Strategy,Intellectual Property Office,20/01/2021,Postage & Delivery Costs,People Places & Serv Directorate,DHL International (UK) Ltd,BRSR004279276,908.92,Not Applicable
Department for Business Energy and Industrial Strategy,Intellectual Property Office,27/01/2021,Postage & Delivery Costs,People Places & Serv Directorate,DHL International (UK) Ltd,BRSR004298392,"3,398.67",Not Applicable
Department for Business Energy and Industrial Strategy,Intellectual Property Office,26/01/2021,Accommodation,People Places & Serv Directorate,Griffiths Signs & Equipment Co,9990,"1,095.60",Not Applicable
Department for Business Energy and Industrial Strategy,Intellectual Property Office,05/01/2021,Pay Costs,Projects,Hays Specialist Recruitment,1010973608,"3,357.96",Not Applicable
Department for Business Energy and Industrial Strategy,Intellectual Property Office,05/01/2021,Pay Costs,Projects,Hays Specialist Recruitment,1010981511,"3,357.96",Not Applicable
Department for Business Energy and Industrial Strategy,Intellectual Property Office,05/01/2021,Pay Costs,Projects,Hays Specialist Recruitment,1011000860,"3,357.96",Not Applicable
Department for Business Energy and Industrial Strategy,Intellectual Property Office,05/01/2021,Pay Costs,Projects,Hays Specialist Recruitment,1011019589,"3,357.96",Not Applicable
Department for Business Energy and Industrial Strategy,Intellectual Property Office,27/01/2021,Pay Costs,Projects,Hays Specialist Recruitment,1011038776,"2,014.78",Not Applicable
Department for Business Energy and Industrial Strategy,Intellectual Property Office,27/01/2021,Pay Costs,Projects,Hays Specialist Recruitment,1011038777,"2,014.78",Not Applicable
Department for Business Energy and Industrial Strategy,Intellectual Property Office,27/01/2021,Pay Costs,Projects,Hays Specialist Recruitment,1011051474,"3,357.96",Not Applicable
Department for Business Energy and Industrial Strategy,Intellectual Property Office,27/01/2021,Pay Costs,Projects,Hays Specialist Recruitment,1011065159,"3,357.96",Not Applicable
Department for Business Energy and Industrial Strategy,Intellectual Property Office,25/01/2021,Staff Costs,IT Directorate,Hays Specialist Recruitment,1011069436,"8,856.00",Not Applicable
Department for Business Energy and Industrial Strategy,Intellectual Property Office,26/01/2021,Pay Costs,Projects,Hays Specialist Recruitment,1011072425,"1,093.49",Not Applicable
Department for Business Energy and Industrial Strategy,Intellectual Property Office,29/01/2021,Pay Costs,Projects,Hays Specialist Recruitment,1011086727,"1,093.49",Not Applicable
Department for Business Energy and Industrial Strategy,Intellectual Property Office,26/01/2021,Office Supplies,People Places & Serv Directorate,Healthy Workstations Ltd,35597,719.05,Not Applicable
Department for Business Energy and Industrial Strategy,Intellectual Property Office,26/01/2021,Accommodation,People Places & Serv Directorate,Healthy Workstations Ltd,35659,"1,316.54",Not Applicable
Department for Business Energy and Industrial Strategy,Intellectual Property Office,26/01/2021,Accommodation,People Places & Serv Directorate,Healthy Workstations Ltd,35753,925.63,Not Applicable
Department for Business Energy and Industrial Strategy,Intellectual Property Office,08/01/2021,Supporting UK Business,Copyright and Enforcement Directorate,Home  Office,2571175,"16,622.48",Not Applicable
Department for Business Energy and Industrial Strategy,Intellectual Property Office,13/01/2021,Legal & Hearings,Trade Mark Directorate,Marten Walsh Cherer Ltd,113329,"4,521.05",Not Applicable
Department for Business Energy and Industrial Strategy,Intellectual Property Office,13/01/2021,Legal & Hearings,Trade Mark Directorate,Marten Walsh Cherer Ltd,114006,"1,279.68",Not Applicable
Department for Business Energy and Industrial Strategy,Intellectual Property Office,13/01/2021,Legal & Hearings,Trade Mark Directorate,Marten Walsh Cherer Ltd,114007,"1,524.17",Not Applicable
Department for Business Energy and Industrial Strategy,Intellectual Property Office,13/01/2021,Legal & Hearings,Trade Mark Directorate,Marten Walsh Cherer Ltd,114008,"1,322.76",Not Applicable
Department for Business Energy and Industrial Strategy,Intellectual Property Office,20/01/2021,Legal & Hearings,Trade Mark Directorate,Marten Walsh Cherer Ltd,114243,"1,987.43",Not Applicable
Department for Business Energy and Industrial Strategy,Intellectual Property Office,28/01/2021,Accommodation,People Places & Serv Directorate,Office for National Statistics,2716057,"84,625.79",Not Applicable
Department for Business Energy and Industrial Strategy,Intellectual Property Office,05/01/2021,Pay Costs,People Places & Serv Directorate,Park Retail Ltd t/a Love2reward,55235605,"7,433.30",Not Applicable
Department for Business Energy and Industrial Strategy,Intellectual Property Office,05/01/2021,Pay Costs,People Places & Serv Directorate,Park Retail Ltd t/a Love2reward,55272598,671.3,Not Applicable
Department for Business Energy and Industrial Strategy,Intellectual Property Office,12/01/2021,Pay Costs,People Places & Serv Directorate,Park Retail Ltd t/a Love2reward,55316433,"16,101.40",Not Applicable
Department for Business Energy and Industrial Strategy,Intellectual Property Office,19/01/2021,Pay Costs,People Places & Serv Directorate,Park Retail Ltd t/a Love2reward,55366885,"1,847.30",Not Applicable
Department for Business Energy and Industrial Strategy,Intellectual Property Office,26/01/2021,Pay Costs,People Places & Serv Directorate,Park Retail Ltd t/a Love2reward,55399314,"2,974.30",Not Applicable
Department for Business Energy and Industrial Strategy,Intellectual Property Office,13/01/2021,Supporting UK Business,Innovation Directorate,Potter Clarkson LLP,966198,"2,500.00",Not Applicable
Department for Business Energy and Industrial Strategy,Intellectual Property Office,26/01/2021,Staff Costs,IT Directorate,QA Ltd,ICE632884,"6,324.00",Not Applicable
Department for Business Energy and Industrial Strategy,Intellectual Property Office,13/01/2021,Information Technology,IT Directorate,QA Ltd,QACI006355,"30,276.00",Not Applicable
Department for Business Energy and Industrial Strategy,Intellectual Property Office,22/01/2021,Postage & Delivery Costs,People Places & Serv Directorate,Royal Mail,9062243895,"1,751.25",Not Applicable
Department for Business Energy and Industrial Strategy,Intellectual Property Office,07/01/2021,Accommodation,People Places & Serv Directorate,Senator International Ltd,S01633579,"2,097.65",Not Applicable
Department for Business Energy and Industrial Strategy,Intellectual Property Office,06/01/2021,Information Technology,IT Directorate,Specialist Computer Centres Plc,OP/M889618,"11,602.56",Not Applicable
Department for Business Energy and Industrial Strategy,Intellectual Property Office,06/01/2021,Information Technology,IT Directorate,Specialist Computer Centres Plc,OP/M889619,"12,530.77",Not Applicable
Department for Business Energy and Industrial Strategy,Intellectual Property Office,28/01/2021,Information Technology,IT Directorate,Specialist Computer Centres Plc,OP/M899271,"18,005.24",Not Applicable
Department for Business Energy and Industrial Strategy,Intellectual Property Office,28/01/2021,Information Technology,IT Directorate,Specialist Computer Centres Plc,OP/M899272,"3,366.76",Not Applicable
Department for Business Energy and Industrial Strategy,Intellectual Property Office,28/01/2021,Information Technology,IT Directorate,Specialist Computer Centres Plc,OP/M899273,"14,547.88",Not Applicable
Department for Business Energy and Industrial Strategy,Intellectual Property Office,28/01/2021,Information Technology,IT Directorate,Specialist Computer Centres Plc,OP/M899274,"2,218.14",Not Applicable
Department for Business Energy and Industrial Strategy,Intellectual Property Office,28/01/2021,Information Technology,IT Directorate,Specialist Computer Centres Plc,OP/M899275,"2,035.10",Not Applicable
Department for Business Energy and Industrial Strategy,Intellectual Property Office,28/01/2021,Information Technology,IT Directorate,Specialist Computer Centres Plc,OP/M899276,"1,617.07",Not Applicable
Department for Business Energy and Industrial Strategy,Intellectual Property Office,28/01/2021,Information Technology,IT Directorate,Specialist Computer Centres Plc,OP/M899279,"1,227.86",Not Applicable
Department for Business Energy and Industrial Strategy,Intellectual Property Office,28/01/2021,Information Technology,IT Directorate,Specialist Computer Centres Plc,OP/M899279,"3,332.77",Not Applicable
Department for Business Energy and Industrial Strategy,Intellectual Property Office,28/01/2021,Information Technology,IT Directorate,Specialist Computer Centres Plc,OP/M899280,"1,798.55",Not Applicable
Department for Business Energy and Industrial Strategy,Intellectual Property Office,28/01/2021,Information Technology,IT Directorate,Specialist Computer Centres Plc,OP/M899281,533.58,Not Applicable
Department for Business Energy and Industrial Strategy,Intellectual Property Office,07/01/2021,Accommodation,People Places & Serv Directorate,Thomas Waste Management Ltd,266931,696,Not Applicable
Department for Business Energy and Industrial Strategy,Intellectual Property Office,28/01/2021,Information Technology,IT Directorate,Trustmarque Solutions Ltd,2312373,"160,371.74",Not Applicable
Department for Business Energy and Industrial Strategy,Intellectual Property Office,28/01/2021,Information Technology,IT Directorate,Trustmarque Solutions Ltd,2312757,"1,103.76",Not Applicable
Department for Business Energy and Industrial Strategy,Intellectual Property Office,21/01/2021,Staff Costs,People Places & Serv Directorate,University of  South Wales,OP/I038455,"15,860.00",Not Applicable
Department for Business Energy and Industrial Strategy,Intellectual Property Office,21/01/2021,Staff Costs,People Places & Serv Directorate,University of  South Wales,OP/I038456,"31,720.00",Not Applicable
Department for Business Energy and Industrial Strategy,Intellectual Property Office,11/01/2021,Travel & Subsistence,People Places & Serv Directorate,Veezu Ltd T/A Dragon Taxis (Newpor,43608,"1,315.50",Not Applicable
Department for Business Energy and Industrial Strategy,Intellectual Property Office,11/01/2021,Travel & Subsistence,People Places & Serv Directorate,Veezu Ltd T/A Dragon Taxis (Newpor,43608,"1,125.78",Not Applicable
Department for Business Energy and Industrial Strategy,Intellectual Property Office,08/01/2021,Travel & Subsistence,People Places & Serv Directorate,Veezu Ltd T/A Dragon Taxis (Newpor,44452,"1,605.24",Not Applicable
Department for Business Energy and Industrial Strategy,Intellectual Property Office,08/01/2021,Travel & Subsistence,People Places & Serv Directorate,Veezu Ltd T/A Dragon Taxis (Newpor,44452,470.04,Not Applicable
Department for Business Energy and Industrial Strategy,Intellectual Property Office,13/01/2021,Supporting UK Business,Innovation Directorate,Withers &  Rogers LLP,6805607,"2,500.00",Not Applicable
Department for Business Energy and Industrial Strategy,Intellectual Property Office,18/01/2021,Supporting UK Business,Innovation Directorate,Withers &  Rogers LLP,6805918,"2,500.00",Not Applicable
Department for Business Energy and Industrial Strategy,Intellectual Property Office,26/01/2021,Supporting UK Business,Innovation Directorate,Withers &  Rogers LLP,6806365,"2,500.00",Not Applicable
Department for Business Energy and Industrial Strategy,Intellectual Property Office,12/01/2021,Staff Costs,People Places & Serv Directorate,Worth Consulting Ltd,1838,"1,302.00",Not Applicable
Department for Business Energy and Industrial Strategy,Intellectual Property Office,27/01/2021,Marketing & Publicity,Innovation Directorate,Aardman Animations Ltd,40361,"78,000.00",Not Applicable
Department for Business Energy and Industrial Strategy,Intellectual Property Office,08/01/2021,Office Supplies,People Places & Serv Directorate,Antalis Limited,9609773,"2,701.86",Not Applicable
Department for Business Energy and Industrial Strategy,Intellectual Property Office,05/01/2021,Information Technology,IT Directorate,Computacenter (UK) ltd,3882789229,"8,010.00",Not Applicable
Department for Business Energy and Industrial Strategy,Intellectual Property Office,12/01/2021,Information Technology,IT Directorate,Computacenter (UK) ltd,3882791461,"1,627.72",Not Applicable
Department for Business Energy and Industrial Strategy,Intellectual Property Office,20/01/2021,Supporting UK Business,Innovation Directorate,Marks & Clerk LLP,5211658,"2,500.00",Not Applicable
Department for Business Energy and Industrial Strategy,Intellectual Property Office,06/01/2021,Telecoms,IT Directorate,Vodafone Corporate Ltd,96786350,"2,833.51",Not Applicable
Department for Business Energy and Industrial Strategy,Intellectual Property Office,04/01/2021,Supporting UK Business,International Policy Directorate,Foreign & Commonwealth and Development O,1131770,"72,283.20",Not Applicable
Department for Business Energy and Industrial Strategy,Intellectual Property Office,05/01/2021,Supporting UK Business,International Policy Directorate,Foreign & Commonwealth and Development O,1132015,"2,978.14",Not Applicable
Department for Business Energy and Industrial Strategy,Intellectual Property Office,12/01/2021,Supporting UK Business,International Policy Directorate,Foreign & Commonwealth and Development O,1132329,"3,830.37",Not Applicable
Department for Business Energy and Industrial Strategy,Intellectual Property Office,19/01/2021,Supporting UK Business,International Policy Directorate,Foreign & Commonwealth and Development O,1132544,"1,528.68",Not Applicable
Department for Business Energy and Industrial Strategy,Intellectual Property Office,29/01/2021,Supporting UK Business,International Policy Directorate,Foreign & Commonwealth and Development O,1132775,"48,820.90",Not Applicable
Department for Business Energy and Industrial Strategy,Intellectual Property Office,28/01/2021,Computer Contracts,People Places & Serv Directorate,HM TREASURY,43202,"27,150.00",Not Applicable
Department for Business Energy and Industrial Strategy,Intellectual Property Office,07/01/2021,Information Technology,Projects,Advanced Business Solutions,ARBK/99056120,765,Not Applicable
Department for Business Energy and Industrial Strategy,Intellectual Property Office,07/01/2021,Information Technology,Finance Directorate,Advanced Business Solutions,ARBK/99056121,765.18,Not Applicable
Department for Business Energy and Industrial Strategy,Intellectual Property Office,07/01/2021,Information Technology,Projects,Advanced Business Solutions,ARBK/99056122,"1,530.00",Not Applicable
Department for Business Energy and Industrial Strategy,Intellectual Property Office,18/01/2021,Information Technology,Projects,Advanced Business Solutions,ARBK/99056230,"4,590.00",Not Applicable
Department for Business Energy and Industrial Strategy,Intellectual Property Office,05/01/2021,Accommodation,People Places & Serv Directorate,RICO LOGISTICS LTD,SINRLLFS00289320,"1,085.99",Not Applicable
Department for Business Energy and Industrial Strategy,Intellectual Property Office,27/01/2021,Accommodation,People Places & Serv Directorate,RICO LOGISTICS LTD,SINRLLFS00291293,"1,654.92",Not Applicable
Department for Business Energy and Industrial Strategy,Intellectual Property Office,06/01/2021,Information Technology,IT Directorate,boxxe Ltd,INV0113138,"149,840.54",Not Applicable
Department for Business Energy and Industrial Strategy,Intellectual Property Office,07/01/2021,Supporting UK Business,Innovation Directorate,LAWRIE INTELLECTUAL PROPERTY,119154,"2,500.00",Not Applicable
Department for Business Energy and Industrial Strategy,Intellectual Property Office,06/01/2021,Supporting UK Business,Innovation Directorate,INNGOT LTD,R2012-9,"2,500.00",Not Applicable
Department for Business Energy and Industrial Strategy,Intellectual Property Office,22/01/2021,Supporting UK Business,Innovation Directorate,INNGOT LTD,S2101/2,"2,500.00",Not Applicable
Department for Business Energy and Industrial Strategy,Intellectual Property Office,28/01/2021,Supporting UK Business,Innovation Directorate,STEPHENS SCOWN LLP,145261,"2,500.00",Not Applicable
Department for Business Energy and Industrial Strategy,Intellectual Property Office,26/01/2021,Supporting UK Business,Innovation Directorate,STEPHENS SCOWN LLP,145263,"2,500.00",Not Applicable
Department for Business Energy and Industrial Strategy,Intellectual Property Office,15/01/2021,Supporting UK Business,Innovation Directorate,CAMERON INTELLECTUAL PROPERTY LTD,5523-21,"2,500.00",Not Applicable
Department for Business Energy and Industrial Strategy,Intellectual Property Office,13/01/2021,Pay Costs,Finance Directorate,Accountancy Recruitment Wales,999322,"1,114.92",Not Applicable
Department for Business Energy and Industrial Strategy,Intellectual Property Office,13/01/2021,Pay Costs,Finance Directorate,Accountancy Recruitment Wales,999323,"1,241.38",Not Applicable
Department for Business Energy and Industrial Strategy,Intellectual Property Office,13/01/2021,Pay Costs,Finance Directorate,Accountancy Recruitment Wales,999324,"2,348.26",Not Applicable
Department for Business Energy and Industrial Strategy,Intellectual Property Office,13/01/2021,Pay Costs,Projects,Accountancy Recruitment Wales,999325,"2,209.68",Not Applicable
Department for Business Energy and Industrial Strategy,Intellectual Property Office,21/01/2021,Pay Costs,Projects,Accountancy Recruitment Wales,999327,"2,367.78",Not Applicable
Department for Business Energy and Industrial Strategy,Intellectual Property Office,21/01/2021,Pay Costs,Finance Directorate,Accountancy Recruitment Wales,999328,"1,090.48",Not Applicable
Department for Business Energy and Industrial Strategy,Intellectual Property Office,21/01/2021,Pay Costs,Finance Directorate,Accountancy Recruitment Wales,999329,"2,106.46",Not Applicable
Department for Business Energy and Industrial Strategy,Intellectual Property Office,21/01/2021,Pay Costs,Finance Directorate,Accountancy Recruitment Wales,999330,961.27,Not Applicable
Department for Business Energy and Industrial Strategy,Intellectual Property Office,28/01/2021,Pay Costs,Finance Directorate,Accountancy Recruitment Wales,999333,865.78,Not Applicable
Department for Business Energy and Industrial Strategy,Intellectual Property Office,28/01/2021,Pay Costs,Finance Directorate,Accountancy Recruitment Wales,999334,"2,139.00",Not Applicable
Department for Business Energy and Industrial Strategy,Intellectual Property Office,28/01/2021,Pay Costs,Projects,Accountancy Recruitment Wales,999335,"2,250.60",Not Applicable
Department for Business Energy and Industrial Strategy,Intellectual Property Office,28/01/2021,Pay Costs,Finance Directorate,Accountancy Recruitment Wales,999336,"1,085.58",Not Applicable
Department for Business Energy and Industrial Strategy,Intellectual Property Office,08/01/2021,Postage & Delivery Costs,People Places & Serv Directorate,CitySprint (UK) Ltd,3539448,"3,289.80",Not Applicable
Department for Business Energy and Industrial Strategy,Intellectual Property Office,22/01/2021,Accommodation,People Places & Serv Directorate,EDF ENERGY,9019015,"1,338.04",Not Applicable
Department for Business Energy and Industrial Strategy,Intellectual Property Office,20/01/2021,Supporting UK Business,Copyright and Enforcement Directorate,DAN ANTHONY PRESENTATIONS LTD,225,800,Not Applicable
Department for Business Energy and Industrial Strategy,Intellectual Property Office,11/01/2021,Information Technology,IT Directorate,Bytes Software Services Ltd,706878,"26,065.42",Not Applicable
Department for Business Energy and Industrial Strategy,Intellectual Property Office,14/01/2021,Supporting UK Business,Innovation Directorate,Burley Law Ltd,INV-1198,"2,500.00",Not Applicable
Department for Business Energy and Industrial Strategy,Intellectual Property Office,14/01/2021,Staff Costs,People Places & Serv Directorate,Sodexo Motivation Solutions UK Ltd,3709776,"4,754.04",Not Applicable
Department for Business Energy and Industrial Strategy,Intellectual Property Office,14/01/2021,Staff Costs,People Places & Serv Directorate,Sodexo Motivation Solutions UK Ltd,3709803,"4,859.62",Not Applicable
Department for Business Energy and Industrial Strategy,Intellectual Property Office,21/01/2021,Telecoms,IT Directorate,EE Ltd,1285932744,894.88,Not Applicable
Department for Business Energy and Industrial Strategy,Intellectual Property Office,18/01/2021,Legal & Hearings,Trade Mark Directorate,Government Legal Department,488641,"7,074.48",Not Applicable
Department for Business Energy and Industrial Strategy,Intellectual Property Office,20/01/2021,Legal & Hearings,Trade Mark Directorate,Government Legal Department,488701,729.24,Not Applicable
Department for Business Energy and Industrial Strategy,Intellectual Property Office,07/01/2021,Telecoms,IT Directorate,Vodafone Limited,UK10/012021/9187,"15,833.87",Not Applicable
Department for Business Energy and Industrial Strategy,Intellectual Property Office,08/01/2021,Miscellaneous Expenses General,Trade Mark Directorate,FCDO Services,6076807,"1,162.50",Not Applicable
Department for Business Energy and Industrial Strategy,Intellectual Property Office,29/01/2021,Supporting UK Business,Innovation Directorate,Coller IP Management Ltd,INV-11153,"2,500.00",Not Applicable
Department for Business Energy and Industrial Strategy,Intellectual Property Office,26/01/2021,Supporting UK Business,Innovation Directorate,Coller IP Management Ltd,INV-11154,"2,500.00",Not Applicable
Department for Business Energy and Industrial Strategy,Intellectual Property Office,26/01/2021,Supporting UK Business,Innovation Directorate,Murgitroyd & Company Ltd,00808-21,"2,500.00",Not Applicable
Department for Business Energy and Industrial Strategy,Intellectual Property Office,18/01/2021,Supporting UK Business,Innovation Directorate,Murgitroyd & Company Ltd,58520S-20,"2,500.00",Not Applicable
Department for Business Energy and Industrial Strategy,Intellectual Property Office,14/01/2021,Information Technology,Innovation Directorate,Personal expenses,UKB0002374,"180,000.00",Not Applicable
Department for Business Energy and Industrial Strategy,Intellectual Property Office,21/01/2021,Information Technology,Patent Directorate,European Patent Office,40301057,"102,222.16",Not Applicable
Department for Business Energy and Industrial Strategy,Intellectual Property Office,29/01/2021,Miscellaneous Expenses General,Patent Directorate,European Patent Office,40301090,"251,819.07",Not Applicable
Department for Business Energy and Industrial Strategy,Intellectual Property Office,29/01/2021,Information Technology,Innovation Directorate,European Patent Office,40301369,"1,447.45",Not Applicable
Department for Business Energy and Industrial Strategy,Intellectual Property Office,29/01/2021,Miscellaneous Expenses General,Projects,Sword SA,SIP-CVU-F2101008,"1,075.00",Not Applicable
Department for Business Energy and Industrial Strategy,Intellectual Property Office,27/01/2021,Miscellaneous Expenses General,Projects,Sword SA,SIP/CVUF2011237A,"1,075.00",Not Applicable
Department for Business Energy and Industrial Strategy,Intellectual Property Office,28/01/2021,Miscellaneous Expenses General,People Places & Serv Directorate,Insight Health Screening,14117,"2,430.00",Not Applicable
Department for Business Energy and Industrial Strategy,Intellectual Property Office,18/01/2021,Supporting UK Business,Innovation Directorate,Allen IP Limited,10987,"2,500.00",Not Applicable
Department for Business Energy and Industrial Strategy,Intellectual Property Office,13/01/2021,Supporting UK Business,Innovation Directorate,Black & Associates Ltd,2101001B,"2,500.00",Not Applicable
Department for Business Energy and Industrial Strategy,Intellectual Property Office,22/01/2021,Supporting UK Business,Innovation Directorate,Scintilla,INV-02524,"2,500.00",Not Applicable
Department for Business Energy and Industrial Strategy,Intellectual Property Office,07/01/2021,Legal & Hearings,Trade Mark Directorate,Professor R E Annand,05JAN21-IPO,"1,800.00",Not Applicable
Department for Business Energy and Industrial Strategy,Intellectual Property Office,19/01/2021,Office Supplies,Patent Directorate,American Institute of Physics,1180072,610.45,Not Applicable
Department for Business Energy and Industrial Strategy,Intellectual Property Office,22/01/2021,Supporting UK Business,Innovation Directorate,Urquhart Dykes & Lord LLP,538983,"2,500.00",Not Applicable
Department for Business Energy and Industrial Strategy,Intellectual Property Office,05/01/2021,Other FA at Cost,IT Directorate,IBM UNITED KINGDOM LIMITED,5812202611,"5,378.93",Not Applicable
Department for Business Energy and Industrial Strategy,Intellectual Property Office,21/01/2021,Information Technology,Patent Directorate,Society of Exploration Geophysicis,2100568340,"4,390.21",Not Applicable
Department for Business Energy and Industrial Strategy,Intellectual Property Office,28/01/2021,Supporting UK Business,Innovation Directorate,Appleyard Lees,149042,"2,500.01",Not Applicable
Department for Business Energy and Industrial Strategy,Intellectual Property Office,29/01/2021,Information Technology,IT Directorate,PerkinElmer Informatics Inc,INV80111833,"17,968.40",Not Applicable
Department for Business Energy and Industrial Strategy,Intellectual Property Office,13/01/2021,Supporting UK Business,Innovation Directorate,Ellis IP Limited,4301,"2,500.00",Not Applicable
Department for Business Energy and Industrial Strategy,Intellectual Property Office,25/01/2021,Staff Costs,People Places & Serv Directorate,KPMG LLP (CSL),5502198278,"1,501.20",Not Applicable
Department for Business Energy and Industrial Strategy,Intellectual Property Office,28/01/2021,Staff Costs,People Places & Serv Directorate,KPMG LLP (CSL),5502200464,"1,501.20",Not Applicable
Department for Business Energy and Industrial Strategy,Intellectual Property Office,28/01/2021,Staff Costs,People Places & Serv Directorate,KPMG LLP (CSL),5502200500,"1,501.20",Not Applicable
Department for Business Energy and Industrial Strategy,Intellectual Property Office,29/01/2021,Staff Costs,People Places & Serv Directorate,KPMG LLP (CSL),5502201339,"1,501.20",Not Applicable
Department for Business Energy and Industrial Strategy,Intellectual Property Office,29/01/2021,Supporting UK Business,Innovation Directorate,Culverstons IP,21-01-0004,"2,500.00",Not Applicable
Department for Business Energy and Industrial Strategy,Intellectual Property Office,15/01/2021,Other FA at Cost,IT Directorate,Responsiv Solutions Limited,RSL1025,"23,232.00",Not Applicable
Department for Business Energy and Industrial Strategy,Intellectual Property Office,21/01/2021,Staff Costs,People Places & Serv Directorate,University of West of England,SN406740/1,"2,667.00",Not Applicable
Department for Business Energy and Industrial Strategy,Intellectual Property Office,08/01/2021,Supporting UK Business,Innovation Directorate,Bridle Intellectual Property Ltd,133-022,"2,500.00",Not Applicable
Department for Business Energy and Industrial Strategy,Intellectual Property Office,13/01/2021,Supporting UK Business,Innovation Directorate,Venture Proof Ltd,2213,"2,500.00",Not Applicable
Department for Business Energy and Industrial Strategy,Intellectual Property Office,26/01/2021,Accommodation,People Places & Serv Directorate,Rexel UK Limited,443338839,558.6,Not Applicable
Department for Business Energy and Industrial Strategy,Intellectual Property Office,05/01/2021,Information Technology,IT Directorate,Equal Experts UK Limited,INV-8224,"15,000.00",Not Applicable
Department for Business Energy and Industrial Strategy,Intellectual Property Office,26/01/2021,Staff Costs,IT Directorate,Hippo Software,HIPPO/21-03,600,Not Applicable
Department for Business Energy and Industrial Strategy,Intellectual Property Office,27/01/2021,Miscellaneous Expenses General,People Places & Serv Directorate,Autism Spectrum Connections Cymru,1968,"1,294.08",Not Applicable
Department for Business Energy and Industrial Strategy,Intellectual Property Office,20/01/2021,Miscellaneous Expenses General,People Places & Serv Directorate,Autism Spectrum Connections Cymru,2059,"1,294.08",Not Applicable
Department for Business Energy and Industrial Strategy,Intellectual Property Office,04/01/2021,Information Technology,People Places & Serv Directorate,European Electronique Limited,1578360,"34,830.95",Not Applicable
Department for Business Energy and Industrial Strategy,Intellectual Property Office,13/01/2021,Legal & Hearings,Finance Directorate,"Department Business, Energy & Industrial",6.15E+11,"166,250.00",Not Applicable
Department for Business Energy and Industrial Strategy,Intellectual Property Office,05/01/2021,Accommodation,People Places & Serv Directorate,Newport Wafer Fab Limited,SD00002738,"11,500.00",Not Applicable
Department for Business Energy and Industrial Strategy,Intellectual Property Office,07/01/2021,Accommodation,People Places & Serv Directorate,Newport Wafer Fab Limited,SD00002739,"6,975.00",Not Applicable
Department for Business Energy and Industrial Strategy,Intellectual Property Office,27/01/2021,Postage & Delivery Costs,People Places & Serv Directorate,IP21 LTD,26300,"2,499.60",Not Applicable
Department for Business Energy and Industrial Strategy,Intellectual Property Office,05/01/2021,Telecoms,IT Directorate,Colt Technology Services,2.02E+12,"1,860.00",Not Applicable
Department for Business Energy and Industrial Strategy,Intellectual Property Office,05/01/2021,Accommodation,People Places & Serv Directorate,Accelerate Cleaning Solutions Ltd,A111610,"2,985.34",Not Applicable
Department for Business Energy and Industrial Strategy,Intellectual Property Office,26/01/2021,Accommodation,People Places & Serv Directorate,Allmarque PMS Ltd t/a Roman Roadmarking,INV-4859,"2,835.22",Not Applicable
Department for Business Energy and Industrial Strategy,Intellectual Property Office,27/01/2021,Accommodation,People Places & Serv Directorate,Shred It Ltd,9504624533,981,Not Applicable
Department for Business Energy and Industrial Strategy,Intellectual Property Office,14/01/2021,Supporting UK Business,Innovation Directorate,Mathys & Squire IP,412614,"2,500.00",Not Applicable
Department for Business Energy and Industrial Strategy,Intellectual Property Office,26/01/2021,Supporting UK Business,Innovation Directorate,AA Thornton & Co,SINV169432,"2,500.00",Not Applicable
Department for Business Energy and Industrial Strategy,Intellectual Property Office,18/01/2021,Supporting UK Business,Innovation Directorate,Keltie LLP,153660,"2,500.01",Not Applicable
Department for Business Energy and Industrial Strategy,Intellectual Property Office,07/01/2021,Supporting UK Business,Innovation Directorate,Keltie LLP,153832,"2,500.00",Not Applicable
Department for Business Energy and Industrial Strategy,Intellectual Property Office,28/01/2021,Supporting UK Business,Innovation Directorate,Gill Jennings & Every LLP,403144,"2,500.00",Not Applicable
Department for Business Energy and Industrial Strategy,Intellectual Property Office,06/01/2021,Information Technology,IT Directorate,8X8 Solutions,2885606,"2,352.82",Not Applicable
Department for Business Energy and Industrial Strategy,Intellectual Property Office,28/01/2021,Supporting UK Business,Innovation Directorate,HFG Limited,618959,"2,500.00",Not Applicable
Department for Business Energy and Industrial Strategy,Intellectual Property Office,26/01/2021,Supporting UK Business,Innovation Directorate,CRAC Limited,INV-0357,"6,000.00",Not Applicable
Department for Business Energy and Industrial Strategy,Intellectual Property Office,14/01/2021,Supporting UK Business,Innovation Directorate,Clarion Solicitors Limited,152912,"2,500.00",Not Applicable
Department for Business Energy and Industrial Strategy,Intellectual Property Office,26/01/2021,Supporting UK Business,Innovation Directorate,Clarion Solicitors Limited,153086,"2,500.00",Not Applicable
Department for Business Energy and Industrial Strategy,Intellectual Property Office,19/01/2021,Staff Costs,IT Directorate,eLearningCurve LLC,1164-20-03,"3,557.89",Not Applicable
Department for Business Energy and Industrial Strategy,Intellectual Property Office,20/01/2021,Telecoms,IT Directorate,Gamma Telecom Ltd,GA1580750,"2,037.94",Not Applicable
Department for Business Energy and Industrial Strategy,Intellectual Property Office,26/01/2021,Staff Costs,People Places & Serv Directorate,People Untapped Limited,INV-1256,"2,640.00",Not Applicable
Department for Business Energy and Industrial Strategy,Intellectual Property Office,14/01/2021,Supporting UK Business,Innovation Directorate,Baron Warren Redfern,405217,"2,500.00",Not Applicable
Department for Business Energy and Industrial Strategy,Intellectual Property Office,07/01/2021,Information Technology,Projects,Deloitte LLP,8001468505,"138,375.60",Not Applicable
Department for Business Energy and Industrial Strategy,Intellectual Property Office,07/01/2021,Information Technology,Projects,Deloitte LLP,8001468506,"138,375.60",Not Applicable
Department for Business Energy and Industrial Strategy,Intellectual Property Office,12/01/2021,Marketing & Publicity,Innovation Directorate,Bell Integrated Communications Limited,SINV-3308,"2,520.00",Not Applicable
Department for Business Energy and Industrial Strategy,Intellectual Property Office,08/01/2021,Pay Costs,IT Directorate,Alexander Mann Solutions Limited,2246895,"5,543.42",Not Applicable
Department for Business Energy and Industrial Strategy,Intellectual Property Office,08/01/2021,Other FA at Cost,IT Directorate,Alexander Mann Solutions Limited,2246897,"1,134.11",Not Applicable
Department for Business Energy and Industrial Strategy,Intellectual Property Office,11/01/2021,Other FA at Cost,IT Directorate,Alexander Mann Solutions Limited,2246898,"4,493.69",Not Applicable
Department for Business Energy and Industrial Strategy,Intellectual Property Office,11/01/2021,Pay Costs,Patent Directorate,Alexander Mann Solutions Limited,2246899,943.92,Not Applicable
Department for Business Energy and Industrial Strategy,Intellectual Property Office,08/01/2021,Pay Costs,Innovation Directorate,Alexander Mann Solutions Limited,2246900,981.7,Not Applicable
Department for Business Energy and Industrial Strategy,Intellectual Property Office,11/01/2021,Pay Costs,IT Directorate,Alexander Mann Solutions Limited,2246901,"3,448.10",Not Applicable
Department for Business Energy and Industrial Strategy,Intellectual Property Office,13/01/2021,Pay Costs,Patent Directorate,Alexander Mann Solutions Limited,2246902,"3,722.88",Not Applicable
Department for Business Energy and Industrial Strategy,Intellectual Property Office,11/01/2021,Pay Costs,IT Directorate,Alexander Mann Solutions Limited,2246903,"4,217.40",Not Applicable
Department for Business Energy and Industrial Strategy,Intellectual Property Office,08/01/2021,Pay Costs,IT Directorate,Alexander Mann Solutions Limited,2246904,"2,375.35",Not Applicable
Department for Business Energy and Industrial Strategy,Intellectual Property Office,11/01/2021,Pay Costs,IT Directorate,Alexander Mann Solutions Limited,2246907,"7,403.24",Not Applicable
Department for Business Energy and Industrial Strategy,Intellectual Property Office,08/01/2021,Pay Costs,Finance Directorate,Alexander Mann Solutions Limited,2246909,"1,847.77",Not Applicable
Department for Business Energy and Industrial Strategy,Intellectual Property Office,11/01/2021,Pay Costs,IT Directorate,Alexander Mann Solutions Limited,2246911,"4,279.81",Not Applicable
Department for Business Energy and Industrial Strategy,Intellectual Property Office,11/01/2021,Pay Costs,Projects,Alexander Mann Solutions Limited,2246913,"4,330.99",Not Applicable
Department for Business Energy and Industrial Strategy,Intellectual Property Office,08/01/2021,Pay Costs,Patent Directorate,Alexander Mann Solutions Limited,2246915,903.55,Not Applicable
Department for Business Energy and Industrial Strategy,Intellectual Property Office,11/01/2021,Pay Costs,IT Directorate,Alexander Mann Solutions Limited,2246917,"2,255.95",Not Applicable
Department for Business Energy and Industrial Strategy,Intellectual Property Office,19/01/2021,Pay Costs,Patent Directorate,Alexander Mann Solutions Limited,2250179,623.26,Not Applicable
Department for Business Energy and Industrial Strategy,Intellectual Property Office,19/01/2021,Pay Costs,Patent Directorate,Alexander Mann Solutions Limited,2250180,623.26,Not Applicable
Department for Business Energy and Industrial Strategy,Intellectual Property Office,19/01/2021,Pay Costs,Patent Directorate,Alexander Mann Solutions Limited,2250181,611.1,Not Applicable
Department for Business Energy and Industrial Strategy,Intellectual Property Office,20/01/2021,Pay Costs,Projects,Alexander Mann Solutions Limited,2250182,"5,342.78",Not Applicable
Department for Business Energy and Industrial Strategy,Intellectual Property Office,19/01/2021,Other FA at Cost,IT Directorate,Alexander Mann Solutions Limited,2250183,"3,377.51",Not Applicable
Department for Business Energy and Industrial Strategy,Intellectual Property Office,19/01/2021,Pay Costs,Finance Directorate,Alexander Mann Solutions Limited,2250184,"2,443.76",Not Applicable
Department for Business Energy and Industrial Strategy,Intellectual Property Office,19/01/2021,Pay Costs,Patent Directorate,Alexander Mann Solutions Limited,2250185,636.12,Not Applicable
Department for Business Energy and Industrial Strategy,Intellectual Property Office,19/01/2021,Pay Costs,Innovation Directorate,Alexander Mann Solutions Limited,2250186,675.77,Not Applicable
Department for Business Energy and Industrial Strategy,Intellectual Property Office,19/01/2021,Pay Costs,Patent Directorate,Alexander Mann Solutions Limited,2250189,581.7,Not Applicable
Department for Business Energy and Industrial Strategy,Intellectual Property Office,19/01/2021,Pay Costs,IT Directorate,Alexander Mann Solutions Limited,2250190,831.6,Not Applicable
Department for Business Energy and Industrial Strategy,Intellectual Property Office,19/01/2021,Pay Costs,IT Directorate,Alexander Mann Solutions Limited,2250191,815.3,Not Applicable
Department for Business Energy and Industrial Strategy,Intellectual Property Office,19/01/2021,Pay Costs,IT Directorate,Alexander Mann Solutions Limited,2250192,"2,685.12",Not Applicable
Department for Business Energy and Industrial Strategy,Intellectual Property Office,19/01/2021,Pay Costs,Patent Directorate,Alexander Mann Solutions Limited,2250193,675.77,Not Applicable
Department for Business Energy and Industrial Strategy,Intellectual Property Office,19/01/2021,Pay Costs,Patent Directorate,Alexander Mann Solutions Limited,2250194,831.01,Not Applicable
Department for Business Energy and Industrial Strategy,Intellectual Property Office,20/01/2021,Pay Costs,Patent Directorate,Alexander Mann Solutions Limited,2250195,675.77,Not Applicable
Department for Business Energy and Industrial Strategy,Intellectual Property Office,19/01/2021,Pay Costs,Patent Directorate,Alexander Mann Solutions Limited,2250196,684.9,Not Applicable
Department for Business Energy and Industrial Strategy,Intellectual Property Office,20/01/2021,Pay Costs,IT Directorate,Alexander Mann Solutions Limited,2250197,"2,687.21",Not Applicable
Department for Business Energy and Industrial Strategy,Intellectual Property Office,19/01/2021,Pay Costs,Finance Directorate,Alexander Mann Solutions Limited,2250198,"3,079.62",Not Applicable
Department for Business Energy and Industrial Strategy,Intellectual Property Office,19/01/2021,Pay Costs,Patent Directorate,Alexander Mann Solutions Limited,2250199,648.18,Not Applicable
Department for Business Energy and Industrial Strategy,Intellectual Property Office,19/01/2021,Pay Costs,People Places & Serv Directorate,Alexander Mann Solutions Limited,2250200,662,Not Applicable
Department for Business Energy and Industrial Strategy,Intellectual Property Office,19/01/2021,Pay Costs,Finance Directorate,Alexander Mann Solutions Limited,2250201,662,Not Applicable
Department for Business Energy and Industrial Strategy,Intellectual Property Office,19/01/2021,Pay Costs,Finance Directorate,Alexander Mann Solutions Limited,2250202,"3,079.62",Not Applicable
Department for Business Energy and Industrial Strategy,Intellectual Property Office,19/01/2021,Pay Costs,Projects,Alexander Mann Solutions Limited,2250203,"3,634.27",Not Applicable
Department for Business Energy and Industrial Strategy,Intellectual Property Office,19/01/2021,Pay Costs,Patent Directorate,Alexander Mann Solutions Limited,2250205,662,Not Applicable
Department for Business Energy and Industrial Strategy,Intellectual Property Office,20/01/2021,Pay Costs,Patent Directorate,Alexander Mann Solutions Limited,2250206,948.28,Not Applicable
Department for Business Energy and Industrial Strategy,Intellectual Property Office,20/01/2021,Pay Costs,Projects,Alexander Mann Solutions Limited,2250207,"3,289.78",Not Applicable
Department for Business Energy and Industrial Strategy,Intellectual Property Office,19/01/2021,Pay Costs,Projects,Alexander Mann Solutions Limited,2250208,"3,079.62",Not Applicable
Department for Business Energy and Industrial Strategy,Intellectual Property Office,19/01/2021,Pay Costs,Patent Directorate,Alexander Mann Solutions Limited,2250209,611.1,Not Applicable
Department for Business Energy and Industrial Strategy,Intellectual Property Office,19/01/2021,Pay Costs,IT Directorate,Alexander Mann Solutions Limited,2250210,"1,890.18",Not Applicable
Department for Business Energy and Industrial Strategy,Intellectual Property Office,20/01/2021,Pay Costs,Trade Mark Directorate,Alexander Mann Solutions Limited,2250211,"1,166.68",Not Applicable
Department for Business Energy and Industrial Strategy,Intellectual Property Office,20/01/2021,Pay Costs,Patent Directorate,Alexander Mann Solutions Limited,2250212,966.38,Not Applicable
Department for Business Energy and Industrial Strategy,Intellectual Property Office,20/01/2021,Pay Costs,Patent Directorate,Alexander Mann Solutions Limited,2250213,684.9,Not Applicable
Department for Business Energy and Industrial Strategy,Intellectual Property Office,19/01/2021,Pay Costs,Patent Directorate,Alexander Mann Solutions Limited,2250215,589.19,Not Applicable
Department for Business Energy and Industrial Strategy,Intellectual Property Office,19/01/2021,Pay Costs,Projects,Alexander Mann Solutions Limited,2250216,"3,120.00",Not Applicable
Department for Business Energy and Industrial Strategy,Intellectual Property Office,19/01/2021,Pay Costs,Patent Directorate,Alexander Mann Solutions Limited,2250217,636.96,Not Applicable
Department for Business Energy and Industrial Strategy,Intellectual Property Office,20/01/2021,Pay Costs,People Places & Serv Directorate,Alexander Mann Solutions Limited,2250218,662.77,Not Applicable
Department for Business Energy and Industrial Strategy,Intellectual Property Office,22/01/2021,Pay Costs,Patent Directorate,Alexander Mann Solutions Limited,2253898,623.26,Not Applicable
Department for Business Energy and Industrial Strategy,Intellectual Property Office,22/01/2021,Pay Costs,Patent Directorate,Alexander Mann Solutions Limited,2253899,835.58,Not Applicable
Department for Business Energy and Industrial Strategy,Intellectual Property Office,22/01/2021,Pay Costs,Patent Directorate,Alexander Mann Solutions Limited,2253900,623.26,Not Applicable
Department for Business Energy and Industrial Strategy,Intellectual Property Office,22/01/2021,Pay Costs,Patent Directorate,Alexander Mann Solutions Limited,2253901,821.88,Not Applicable
Department for Business Energy and Industrial Strategy,Intellectual Property Office,22/01/2021,Pay Costs,Projects,Alexander Mann Solutions Limited,2253902,"3,339.24",Not Applicable
Department for Business Energy and Industrial Strategy,Intellectual Property Office,22/01/2021,Other FA at Cost,IT Directorate,Alexander Mann Solutions Limited,2253903,"3,145.07",Not Applicable
Department for Business Energy and Industrial Strategy,Intellectual Property Office,22/01/2021,Pay Costs,Patent Directorate,Alexander Mann Solutions Limited,2253904,878.72,Not Applicable
Department for Business Energy and Industrial Strategy,Intellectual Property Office,22/01/2021,Pay Costs,Innovation Directorate,Alexander Mann Solutions Limited,2253905,675.77,Not Applicable
Department for Business Energy and Industrial Strategy,Intellectual Property Office,22/01/2021,Pay Costs,Patent Directorate,Alexander Mann Solutions Limited,2253907,581.7,Not Applicable
Department for Business Energy and Industrial Strategy,Intellectual Property Office,22/01/2021,Pay Costs,IT Directorate,Alexander Mann Solutions Limited,2253908,"1,240.68",Not Applicable
Department for Business Energy and Industrial Strategy,Intellectual Property Office,22/01/2021,Pay Costs,Patent Directorate,Alexander Mann Solutions Limited,2253910,675.77,Not Applicable
Department for Business Energy and Industrial Strategy,Intellectual Property Office,25/01/2021,Pay Costs,IT Directorate,Alexander Mann Solutions Limited,2253911,"4,227.58",Not Applicable
Department for Business Energy and Industrial Strategy,Intellectual Property Office,25/01/2021,Pay Costs,IT Directorate,Alexander Mann Solutions Limited,2253912,"2,651.86",Not Applicable
Department for Business Energy and Industrial Strategy,Intellectual Property Office,22/01/2021,Pay Costs,Finance Directorate,Alexander Mann Solutions Limited,2253913,"3,079.62",Not Applicable
Department for Business Energy and Industrial Strategy,Intellectual Property Office,22/01/2021,Pay Costs,People Places & Serv Directorate,Alexander Mann Solutions Limited,2253914,662,Not Applicable
Department for Business Energy and Industrial Strategy,Intellectual Property Office,22/01/2021,Pay Costs,Finance Directorate,Alexander Mann Solutions Limited,2253915,662,Not Applicable
Department for Business Energy and Industrial Strategy,Intellectual Property Office,22/01/2021,Pay Costs,Finance Directorate,Alexander Mann Solutions Limited,2253916,"3,079.62",Not Applicable
Department for Business Energy and Industrial Strategy,Intellectual Property Office,22/01/2021,Pay Costs,Projects,Alexander Mann Solutions Limited,2253917,"3,671.93",Not Applicable
Department for Business Energy and Industrial Strategy,Intellectual Property Office,22/01/2021,Pay Costs,Patent Directorate,Alexander Mann Solutions Limited,2253919,662,Not Applicable
Department for Business Energy and Industrial Strategy,Intellectual Property Office,22/01/2021,Pay Costs,Patent Directorate,Alexander Mann Solutions Limited,2253920,611.1,Not Applicable
Department for Business Energy and Industrial Strategy,Intellectual Property Office,22/01/2021,Pay Costs,Projects,Alexander Mann Solutions Limited,2253921,"3,079.62",Not Applicable
Department for Business Energy and Industrial Strategy,Intellectual Property Office,22/01/2021,Pay Costs,Patent Directorate,Alexander Mann Solutions Limited,2253922,611.1,Not Applicable
Department for Business Energy and Industrial Strategy,Intellectual Property Office,22/01/2021,Pay Costs,IT Directorate,Alexander Mann Solutions Limited,2253923,"1,890.18",Not Applicable
Department for Business Energy and Industrial Strategy,Intellectual Property Office,22/01/2021,Pay Costs,Patent Directorate,Alexander Mann Solutions Limited,2253924,843.1,Not Applicable
Department for Business Energy and Industrial Strategy,Intellectual Property Office,22/01/2021,Pay Costs,Patent Directorate,Alexander Mann Solutions Limited,2253926,"1,392.64",Not Applicable
Department for Business Energy and Industrial Strategy,Intellectual Property Office,22/01/2021,Pay Costs,Patent Directorate,Alexander Mann Solutions Limited,2253927,681.1,Not Applicable
Department for Business Energy and Industrial Strategy,Intellectual Property Office,22/01/2021,Pay Costs,Projects,Alexander Mann Solutions Limited,2253928,"3,120.00",Not Applicable
Department for Business Energy and Industrial Strategy,Intellectual Property Office,22/01/2021,Pay Costs,Patent Directorate,Alexander Mann Solutions Limited,2253929,601.13,Not Applicable
Department for Business Energy and Industrial Strategy,Intellectual Property Office,29/01/2021,Pay Costs,Patent Directorate,Alexander Mann Solutions Limited,2258052,623.26,Not Applicable
Department for Business Energy and Industrial Strategy,Intellectual Property Office,29/01/2021,Pay Costs,Patent Directorate,Alexander Mann Solutions Limited,2258053,623.26,Not Applicable
Department for Business Energy and Industrial Strategy,Intellectual Property Office,29/01/2021,Pay Costs,Projects,Alexander Mann Solutions Limited,2258055,"3,339.24",Not Applicable
Department for Business Energy and Industrial Strategy,Intellectual Property Office,29/01/2021,Pay Costs,Finance Directorate,Alexander Mann Solutions Limited,2258056,"2,175.55",Not Applicable
Department for Business Energy and Industrial Strategy,Intellectual Property Office,29/01/2021,Pay Costs,Innovation Directorate,Alexander Mann Solutions Limited,2258058,675.77,Not Applicable
Department for Business Energy and Industrial Strategy,Intellectual Property Office,29/01/2021,Pay Costs,Patent Directorate,Alexander Mann Solutions Limited,2258065,"1,351.54",Not Applicable
Department for Business Energy and Industrial Strategy,Intellectual Property Office,29/01/2021,Pay Costs,Patent Directorate,Alexander Mann Solutions Limited,2258066,623.26,Not Applicable
Department for Business Energy and Industrial Strategy,Intellectual Property Office,29/01/2021,Pay Costs,Patent Directorate,Alexander Mann Solutions Limited,2258067,675.77,Not Applicable
Department for Business Energy and Industrial Strategy,Intellectual Property Office,29/01/2021,Pay Costs,Patent Directorate,Alexander Mann Solutions Limited,2258068,684.9,Not Applicable
Department for Business Energy and Industrial Strategy,Intellectual Property Office,29/01/2021,Pay Costs,Finance Directorate,Alexander Mann Solutions Limited,2258070,"3,079.62",Not Applicable
Department for Business Energy and Industrial Strategy,Intellectual Property Office,29/01/2021,Pay Costs,People Places & Serv Directorate,Alexander Mann Solutions Limited,2258071,662,Not Applicable
Department for Business Energy and Industrial Strategy,Intellectual Property Office,29/01/2021,Pay Costs,Finance Directorate,Alexander Mann Solutions Limited,2258073,662,Not Applicable
Department for Business Energy and Industrial Strategy,Intellectual Property Office,29/01/2021,Pay Costs,Finance Directorate,Alexander Mann Solutions Limited,2258074,"3,079.62",Not Applicable
Department for Business Energy and Industrial Strategy,Intellectual Property Office,29/01/2021,Pay Costs,Projects,Alexander Mann Solutions Limited,2258075,"3,554.24",Not Applicable
Department for Business Energy and Industrial Strategy,Intellectual Property Office,29/01/2021,Pay Costs,Patent Directorate,Alexander Mann Solutions Limited,2258077,"1,466.21",Not Applicable
Department for Business Energy and Industrial Strategy,Intellectual Property Office,29/01/2021,Pay Costs,Projects,Alexander Mann Solutions Limited,2258078,"1,544.92",Not Applicable
Department for Business Energy and Industrial Strategy,Intellectual Property Office,29/01/2021,Pay Costs,Patent Directorate,Alexander Mann Solutions Limited,2258079,611.1,Not Applicable
Department for Business Energy and Industrial Strategy,Intellectual Property Office,29/01/2021,Pay Costs,Projects,Alexander Mann Solutions Limited,2258080,"3,079.62",Not Applicable
Department for Business Energy and Industrial Strategy,Intellectual Property Office,29/01/2021,Pay Costs,Patent Directorate,Alexander Mann Solutions Limited,2258081,611.1,Not Applicable
Department for Business Energy and Industrial Strategy,Intellectual Property Office,29/01/2021,Pay Costs,IT Directorate,Alexander Mann Solutions Limited,2258082,"1,890.18",Not Applicable
Department for Business Energy and Industrial Strategy,Intellectual Property Office,29/01/2021,Pay Costs,Projects,Alexander Mann Solutions Limited,2258085,"3,900.00",Not Applicable
Department for Business Energy and Industrial Strategy,Intellectual Property Office,29/01/2021,Pay Costs,Patent Directorate,Alexander Mann Solutions Limited,2258086,573.26,Not Applicable
Department for Business Energy and Industrial Strategy,Intellectual Property Office,29/01/2021,Pay Costs,People Places & Serv Directorate,Alexander Mann Solutions Limited,2258087,662,Not Applicable
Department for Business Energy and Industrial Strategy,Intellectual Property Office,29/01/2021,Pay Costs,People Places & Serv Directorate,Alexander Mann Solutions Limited,2258089,666.64,Not Applicable
Department for Business Energy and Industrial Strategy,Intellectual Property Office,05/01/2021,Accommodation,People Places & Serv Directorate,CBRE Managed Services Ltd,S00842161,"1,949.12",Not Applicable
Department for Business Energy and Industrial Strategy,Intellectual Property Office,15/01/2021,Staff Costs,People Places & Serv Directorate,MIND,IVC02095,"12,384.00",Not Applicable
Department for Business Energy and Industrial Strategy,Intellectual Property Office,08/01/2021,Information Technology,People Places & Serv Directorate,Cyberis Limited,INV01750,"6,300.00",Not Applicable
Department for Business Energy and Industrial Strategy,Intellectual Property Office,26/01/2021,Supporting UK Business,Innovation Directorate,Hindles Ltd,201205,"2,500.00",Not Applicable
Department for Business Energy and Industrial Strategy,Intellectual Property Office,07/01/2021,Information Technology,IT Directorate,DYNATRACE LIMITED,GBR-2004450,"517,295.56",Not Applicable
Department for Business Energy and Industrial Strategy,Intellectual Property Office,12/01/2021,Pay Costs,Projects,Empyrean Digital Ltd,EMP-372,"13,440.00",Not Applicable
Department for Business Energy and Industrial Strategy,Intellectual Property Office,18/01/2021,Pay Costs,Projects,Empyrean Digital Ltd,EMP-373,"12,600.00",Not Applicable
Department for Business Energy and Industrial Strategy,Intellectual Property Office,15/01/2021,Pay Costs,Projects,Empyrean Digital Ltd,EMP-374,"11,760.00",Not Applicable
Department for Business Energy and Industrial Strategy,Intellectual Property Office,11/01/2021,Information Technology,IT Directorate,Empyrean Digital Ltd,EMP-376,"11,310.00",Not Applicable
Department for Business Energy and Industrial Strategy,Intellectual Property Office,13/01/2021,Information Technology,IT Directorate,Empyrean Digital Ltd,EMP-378,"28,372.51",Not Applicable
Department for Business Energy and Industrial Strategy,Intellectual Property Office,04/01/2021,Accommodation,People Places & Serv Directorate,Government Property Agency,00000001/5951,"13,255.44",Not Applicable
Department for Business Energy and Industrial Strategy,Intellectual Property Office,11/01/2021,Other FA at Cost,IT Directorate,Tria Recruitment Limited,8504,"19,950.00",Not Applicable
Department for Business Energy and Industrial Strategy,Intellectual Property Office,11/01/2021,Other FA at Cost,IT Directorate,Tria Recruitment Limited,8505,"18,525.00",Not Applicable
Department for Business Energy and Industrial Strategy,Intellectual Property Office,11/01/2021,Other FA at Cost,IT Directorate,Tria Recruitment Limited,8506,"12,540.00",Not Applicable
Department for Business Energy and Industrial Strategy,Intellectual Property Office,11/01/2021,Other FA at Cost,IT Directorate,Tria Recruitment Limited,8507,"12,540.00",Not Applicable
Department for Business Energy and Industrial Strategy,Intellectual Property Office,11/01/2021,Other FA at Cost,IT Directorate,Tria Recruitment Limited,8508,"15,675.00",Not Applicable
Department for Business Energy and Industrial Strategy,Intellectual Property Office,11/01/2021,Other FA at Cost,IT Directorate,Tria Recruitment Limited,8509,"18,525.00",Not Applicable
Department for Business Energy and Industrial Strategy,Intellectual Property Office,28/01/2021,Office Stationery,People Places & Serv Directorate,Alpha Electronics(Wales),H57720210131lnlhpbbiw,240,Not Applicable
Department for Business Energy and Industrial Strategy,Intellectual Property Office,28/01/2021,Office Stationery,People Places & Serv Directorate,Amznmktplace,H57720210131qivoubcie,31.95,Not Applicable
Department for Business Energy and Industrial Strategy,Intellectual Property Office,28/01/2021,Office Stationery,People Places & Serv Directorate,Screwfix Direct,H57720210131rbejamusw,72,Not Applicable
Department for Business Energy and Industrial Strategy,Intellectual Property Office,26/01/2021,Overseas Patent Specifications,Patent Directorate,Onepetro,H57720210128ixjpfdqfq,21.19,Not Applicable
Department for Business Energy and Industrial Strategy,Intellectual Property Office,26/01/2021,Office Stationery,People Places & Serv Directorate,Healthy Workstations Ltd,H57720210128jlwexqrku,130.8,Not Applicable
Department for Business Energy and Industrial Strategy,Intellectual Property Office,26/01/2021,Office Stationery,People Places & Serv Directorate,Amznmktplace,H57720210128vqhflflap,19.87,Not Applicable
Department for Business Energy and Industrial Strategy,Intellectual Property Office,26/01/2021,Office Stationery,People Places & Serv Directorate,Healthy Workstations Ltd,H57720210128xdbhxxorq,77.94,Not Applicable
Department for Business Energy and Industrial Strategy,Intellectual Property Office,24/01/2021,Books,Trade Mark Directorate,The Intellectual Property,H57720210126hmaermhmy,-50,Not Applicable
Department for Business Energy and Industrial Strategy,Intellectual Property Office,24/01/2021,Books,Trade Mark Directorate,The Intellectual Property,H57720210126ilwhgynpk,-50,Not Applicable
Department for Business Energy and Industrial Strategy,Intellectual Property Office,24/01/2021,Books,Trade Mark Directorate,The Intellectual Property,H57720210126jisukhqmi,-50,Not Applicable
Department for Business Energy and Industrial Strategy,Intellectual Property Office,22/01/2021,Office Stationery,People Places & Serv Directorate,B&g Cleaning Systems L,H57720210126lchhmlitd,490.8,Not Applicable
Department for Business Energy and Industrial Strategy,Intellectual Property Office,24/01/2021,Books,Trade Mark Directorate,The Intellectual Property,H57720210126mcrjbhaak,-50,Not Applicable
Department for Business Energy and Industrial Strategy,Intellectual Property Office,24/01/2021,Books,Trade Mark Directorate,The Intellectual Property,H57720210126ncvvrweup,-50,Not Applicable
Department for Business Energy and Industrial Strategy,Intellectual Property Office,21/01/2021,Network and infrastructure H/W,IT Directorate,Www.Uk.Insight.Com,H57720210126nfjstding,832.8,Not Applicable
Department for Business Energy and Industrial Strategy,Intellectual Property Office,24/01/2021,Books,Trade Mark Directorate,The Intellectual Property,H57720210126nvpkmrxmv,-50,Not Applicable
Department for Business Energy and Industrial Strategy,Intellectual Property Office,24/01/2021,Books,Trade Mark Directorate,The Intellectual Property,H57720210126ofnfgmiio,-50,Not Applicable
Department for Business Energy and Industrial Strategy,Intellectual Property Office,24/01/2021,Books,Trade Mark Directorate,The Intellectual Property,H57720210126vtufmvjsr,-50,Not Applicable
Department for Business Energy and Industrial Strategy,Intellectual Property Office,21/01/2021,Career Development Services,Patent Directorate,Knowledge Exchange Group,H57720210123jkzlpstre,297,Not Applicable
Department for Business Energy and Industrial Strategy,Intellectual Property Office,19/01/2021,Other,People Places & Serv Directorate,Igpp Ltd,H57720210121emfxrqawu,283.2,Not Applicable
Department for Business Energy and Industrial Strategy,Intellectual Property Office,19/01/2021,Office Stationery,People Places & Serv Directorate,Amznmktplace,H57720210121iueihkecf,56.31,Not Applicable
Department for Business Energy and Industrial Strategy,Intellectual Property Office,19/01/2021,Perpetual Licences,IT Directorate,Fast Sms,H57720210121jphnlrsly,480,Not Applicable
Department for Business Energy and Industrial Strategy,Intellectual Property Office,19/01/2021,Office Stationery,People Places & Serv Directorate,Amznmktplace,H57720210121qufdtbxyd,19.54,Not Applicable
Department for Business Energy and Industrial Strategy,Intellectual Property Office,19/01/2021,Career Development Services,Patent Directorate,Www.Westminster-Briefi,H57720210121rknesrmdc,300,Not Applicable
Department for Business Energy and Industrial Strategy,Intellectual Property Office,19/01/2021,Career Development Services,Patent Directorate,Www.Westminster-Briefi,H57720210121rknesrmdc,300,Not Applicable
Department for Business Energy and Industrial Strategy,Intellectual Property Office,19/01/2021,Career Development Services,Patent Directorate,Www.Westminster-Briefi,H57720210121rknesrmdc,300,Not Applicable
Department for Business Energy and Industrial Strategy,Intellectual Property Office,19/01/2021,Books,Patent Directorate,Amznmktplace,H57720210121ucpxvotfd,10.49,Not Applicable
Department for Business Energy and Industrial Strategy,Intellectual Property Office,18/01/2021,Career Development Services,Innovation Directorate,Www.Cipr.Co.Uk,H57720210120ixencjvcb,402,Not Applicable
Department for Business Energy and Industrial Strategy,Intellectual Property Office,18/01/2021,Office Stationery,People Places & Serv Directorate,Amznmktplace,H57720210120vbrptifwx,19.87,Not Applicable
Department for Business Energy and Industrial Strategy,Intellectual Property Office,18/01/2021,Ad-hoc IT Services,IT Directorate,Www.Ja.Net,H57720210120ymixohedh,60,Not Applicable
Department for Business Energy and Industrial Strategy,Intellectual Property Office,16/01/2021,Books,Patent Directorate,The Intellectual Property,H57720210119cexxsdzkk,5,Not Applicable
Department for Business Energy and Industrial Strategy,Intellectual Property Office,15/01/2021,Office Stationery,People Places & Serv Directorate,Amznmktplace,H57720210119hprlcteee,22.57,Not Applicable
Department for Business Energy and Industrial Strategy,Intellectual Property Office,16/01/2021,Books,IT Directorate,Amazon.Co.Uk,H57720210119muqhwfuic,55.39,Not Applicable
Department for Business Energy and Industrial Strategy,Intellectual Property Office,16/01/2021,Books,Patent Directorate,The Intellectual Property,H57720210119rhccitpki,30,Not Applicable
Department for Business Energy and Industrial Strategy,Intellectual Property Office,17/01/2021,Career Development Services,Patent Directorate,Www.Westminster-Briefi,H57720210119vrcyixwxl,300,Not Applicable
Department for Business Energy and Industrial Strategy,Intellectual Property Office,14/01/2021,Office Stationery,People Places & Serv Directorate,Value Products Ltd,H57720210116gyvtinpxm,-936,Not Applicable
Department for Business Energy and Industrial Strategy,Intellectual Property Office,14/01/2021,Ad-hoc IT Services,IT Directorate,Digicert Inc,H57720210116mbkfubsub,520.27,Not Applicable
Department for Business Energy and Industrial Strategy,Intellectual Property Office,13/01/2021,Career Development Services,Patent Directorate,Www.Westminster-Briefi,H57720210115gttwngksq,300,Not Applicable
Department for Business Energy and Industrial Strategy,Intellectual Property Office,13/01/2021,Office Stationery,People Places & Serv Directorate,Value Products Ltd,H57720210115pwjryuwro,982.62,Not Applicable
Department for Business Energy and Industrial Strategy,Intellectual Property Office,12/01/2021,Career Development Services,People Places & Serv Directorate,Eb *multimedia Storyte,H57720210114smnocaxbg,141.91,Not Applicable
Department for Business Energy and Industrial Strategy,Intellectual Property Office,11/01/2021,Office Stationery,People Places & Serv Directorate,Www.Insighthealthscreenin,H57720210113fvrgguvkb,333.99,Not Applicable
Department for Business Energy and Industrial Strategy,Intellectual Property Office,11/01/2021,Office Stationery,People Places & Serv Directorate,Amznmktplace,H57720210113hmroydklf,329.94,Not Applicable
Department for Business Energy and Industrial Strategy,Intellectual Property Office,11/01/2021,Office Stationery,People Places & Serv Directorate,Amznmktplace,H57720210113jpwresrzv,8.49,Not Applicable
Department for Business Energy and Industrial Strategy,Intellectual Property Office,11/01/2021,Office Stationery,People Places & Serv Directorate,Amznmktplace Amazon.Co.Uk,H57720210113qcfhtgdbv,60.98,Not Applicable
Department for Business Energy and Industrial Strategy,Intellectual Property Office,11/01/2021,Office Stationery,People Places & Serv Directorate,Amazon.Co.Uk,H57720210113vpluipobu,79.99,Not Applicable
Department for Business Energy and Industrial Strategy,Intellectual Property Office,11/01/2021,Office Stationery,People Places & Serv Directorate,Amazon.Co.Uk,H57720210113wjtqjnkjn,8.3,Not Applicable
Department for Business Energy and Industrial Strategy,Intellectual Property Office,10/01/2021,Books,Patent Directorate,Amazon Prime,H57720210112bmhmdvkhd,7.99,Not Applicable
Department for Business Energy and Industrial Strategy,Intellectual Property Office,10/01/2021,Office Stationery,People Places & Serv Directorate,Amznmktplace,H57720210112cpbhxpzsw,9.99,Not Applicable
Department for Business Energy and Industrial Strategy,Intellectual Property Office,10/01/2021,Office Stationery,People Places & Serv Directorate,Amznmktplace,H57720210112gqtuiwyrq,9.99,Not Applicable
Department for Business Energy and Industrial Strategy,Intellectual Property Office,10/01/2021,Office Stationery,People Places & Serv Directorate,Amznmktplace,H57720210112gtyslybnu,9.99,Not Applicable
Department for Business Energy and Industrial Strategy,Intellectual Property Office,10/01/2021,Office Stationery,People Places & Serv Directorate,Amznmktplace,H57720210112gxhwiftvh,9.99,Not Applicable
Department for Business Energy and Industrial Strategy,Intellectual Property Office,10/01/2021,Office Stationery,People Places & Serv Directorate,Amznmktplace,H57720210112htjxvenuc,9.99,Not Applicable
Department for Business Energy and Industrial Strategy,Intellectual Property Office,10/01/2021,Office Stationery,People Places & Serv Directorate,Amznmktplace,H57720210112ixfqotpgo,9.99,Not Applicable
Department for Business Energy and Industrial Strategy,Intellectual Property Office,08/01/2021,Ad-hoc IT Services,IT Directorate,Digicert Inc,H57720210112judwxbopa,523.27,Not Applicable
Department for Business Energy and Industrial Strategy,Intellectual Property Office,10/01/2021,Office Stationery,People Places & Serv Directorate,Amznmktplace,H57720210112kvhqzwthh,9.99,Not Applicable
Department for Business Energy and Industrial Strategy,Intellectual Property Office,10/01/2021,Office Stationery,People Places & Serv Directorate,Amznmktplace,H57720210112lxsyggvpl,9.99,Not Applicable
Department for Business Energy and Industrial Strategy,Intellectual Property Office,08/01/2021,Office Stationery,People Places & Serv Directorate,Amznmktplace,H57720210112nlxcbcwlv,32.99,Not Applicable
Department for Business Energy and Industrial Strategy,Intellectual Property Office,10/01/2021,Office Stationery,People Places & Serv Directorate,Amznmktplace,H57720210112olquipgmy,69.2,Not Applicable
Department for Business Energy and Industrial Strategy,Intellectual Property Office,10/01/2021,Office Stationery,People Places & Serv Directorate,Amznmktplace,H57720210112rmulbsxgs,9.99,Not Applicable
Department for Business Energy and Industrial Strategy,Intellectual Property Office,10/01/2021,Office Stationery,People Places & Serv Directorate,Amznmktplace,H57720210112wihewgvxk,9.99,Not Applicable
Department for Business Energy and Industrial Strategy,Intellectual Property Office,08/01/2021,Office Stationery,People Places & Serv Directorate,Amznmktplace,H57720210112wtfqygyey,109.5,Not Applicable
Department for Business Energy and Industrial Strategy,Intellectual Property Office,07/01/2021,Entertainment,Patent Directorate,Amazon.Co.Uk,H57720210110eqcvgugwb,20,Not Applicable
Department for Business Energy and Industrial Strategy,Intellectual Property Office,07/01/2021,Office Stationery,People Places & Serv Directorate,Screwfix Direct,H57720210110ijlhgwgik,47.54,Not Applicable
Department for Business Energy and Industrial Strategy,Intellectual Property Office,07/01/2021,Office Stationery,People Places & Serv Directorate,Value Products Ltd,H57720210110jqyvcgbpn,106.56,Not Applicable
Department for Business Energy and Industrial Strategy,Intellectual Property Office,07/01/2021,Ad-hoc IT Services,IT Directorate,Digicert Inc,H57720210110mpubfqqnw,523.46,Not Applicable
Department for Business Energy and Industrial Strategy,Intellectual Property Office,07/01/2021,Office Stationery,People Places & Serv Directorate,Www.Keysignsuk.Co.Uk,H57720210110qzrqmrcna,108.36,Not Applicable
